{"text_format":"1","workbook":"xlsx","n_sheets":10,"sheets":["PRESENTATION","INTRODUCTION","A- PLAN DE BIOSECURITE","B- SAS SANITAIRE","C- NETTOYAGE ET DESINFECTION","D- MORTALITE","E- PARCOURS","F- INTRANTS","G- FUMIER ","BILAN - PISTES DE PROGRES"],"not_rendered":{"charts":0,"images":20,"macros":1,"external_links":0,"defined_names":0,"comments":0,"pivot_tables":0},"unopened":[],"bounds":{"document_bytes":16777216,"sheet_cells":100000,"rows_first":2000,"rows_last":500,"rows_between":2000,"halvings":0,"cell_chars":16384,"cell_head_chars":4096},"cells_cut":0,"cells_raw":0,"read":"whole","date_system":"1900"}

{"sheet":"PRESENTATION","index":0,"n_rows":0,"n_cols":0,"rows_kept":0,"cut":false,"hidden":false,"merged":[[1,1,6,8]]}

{"sheet":"INTRODUCTION","index":1,"n_rows":11,"n_cols":2,"rows_kept":11,"cut":false,"hidden":false,"merged":[[10,1,10,8],[12,1,12,7]]}
[]
[]
[]
[]
[]
[]
[]
[]
[]
[]
[null,"Objectif: Assurer une gestion bio-sécuritaire sur mon exploitation : Elevage volailles plein-air "]

{"sheet":"A- PLAN DE BIOSECURITE","index":2,"n_rows":19,"n_cols":10,"rows_kept":19,"cut":false,"hidden":false,"merged":[[1,2,1,9]]}
[]
[null,null,"LE PLAN DE BIOSECURITE",null,null,true]
[]
[null,null,1,"Je définis une unité de production comme ",false,"Un ensemble ou une partie de l'exploitation complétement indépendant de toutes les autres UP de la même exploitation en ce qui concerne sa localisation (séparation dans l'espace) et les activités routinières. Chaque UP fonctionne en bande unique.",false,"L'ensemble des bâtiments d'une même exploitation même si les animaux ont des âges différents à condition de bien respecter les règles de biosécurité en entrant dans la zone professionnelle.",null,"Un ensemble ou une partie de l'exploitation complétement indépendant de toutes les autres UP de la même exploitation en qui concerne sa localisation (séparation dans l'espace) et les activités routinières. Je peux circuler librement entre chaque UP de l'exploitation, sans précautions particulières. "]
[null,null,{"$f":"C4+1","v":2},"Mes UP sont bien définies et sont séparées physiquement (ex. par des barrières, grillages simples ou doubles, haies, chaînes, ….)",false,"OUI ou UNE SEULE UP",false,"NON",false,"JE PEUX MIEUX FAIRE "]
[null,null,{"$f":"C5+1","v":3}," Je nettoie et désinfecte mon matériel lorsque je change d’UP",false,"SYSTEMATIQUE ou UNE SEULE UP",false,"JAMAIS",false,"PARFOIS"]
[null,null,4,"Chaque UP fonctionne en bande unique",false,"OUI",false,"NON"]
[null,null,5,"J'élève diffèrentes espéces dans une même UP",false,"NON",null,"OUI"]
[null,null,6,"La zone professionnelle, contenant l'ensemble de mes UP, est délimitée (par des chaînettes, cordes, …) et identifiables par des tiers (via des panneaux de signalisation, …)",false,"OUI",false,"NON",null,"JE PEUX MIEUX FAIRE "]
[null,null,7," L’accès à la zone professionnelle n’est autorisé qu’aux personnels et véhicules qui sont en lien avec l’élevage (pas d’animaux de compagnies, de véhicules privés, de visiteurs pour raison autre que professionnelle) ",false,"OUI",false,"NON",false]
[null,null,8,"Je signalise une aire de parking pour les voitures en limite entre la zone professionnelle et la zone d’élevage ",false,"OUI",false,"NON",false]
[null,null,9,"Le bac d’équarrissage est placé de manière à ce que les camions ne pénètrent pas dans la zone professionnelle",false,"OUI ",null,"NON",false]
[null,null,10,"Lorsque je suis présent sur site, je vérifie que les véhicules des professionnels qualifiés, intervenants sur l’élevage se garent bien sur l’aire de parking prévue (ou qu’ils réalisent un nettoyage et une désinfection du véhicule avant d’entrer dans la zone professionnelle)",false,"SYSTEMATIQUE",false,"JAMAIS",null,"PARFOIS"]
[null,null,11,"Lorsque je suis présent sur site, je vérifie que les camions de transport (aliment, animaux, litière, …) réalisent un lavage et une désinfection des roues et bas de caisse sur l’aire stabilisée prévue avant d’entrer dans la zone professionnelle",false,"SYSTEMATIQUE",false,"JAMAIS",false,"PARFOIS"]
[null,null,null,null,null,{"$f":"COUNTIF(E4:E14,TRUE())","v":0},null,{"$f":"(COUNTIF(G4:G14,TRUE()))*0","v":0},null,{"$f":"(COUNTIF(I4:I14,TRUE()))*0.5","v":0}]
[]
[null,null,null,null,null,null,null,"TOTAL",null,{"$f":"SUM(F15:J15)","v":0}]
[null,null,null,null,null,null,null,null,null,{"$f":"IF(J17>10.5,\"CONFORME !\",IF(J17<7,\"NON CONFORME \", \"A AMELIORER\"))","v":"NON CONFORME "}]
[null,null," "]

{"sheet":"B- SAS SANITAIRE","index":3,"n_rows":22,"n_cols":9,"rows_kept":22,"cut":false,"hidden":false,"merged":[[1,1,1,8]]}
[]
[null,"LE SAS SANITAIRE",null,null,true]
[]
[null,1,"Un sas est présent à l’entrée de chaque Unité de Production (UP)",false,"OUI",false,"NON"]
[null,{"$f":"B4+1","v":2},"La zone propre et la zone sale sont séparées par : ",false,"UN BANC",false,"UN MARQUAGE AU SOL ou PAS DE SEPARATION ",false,"UNE PLANCHE "]
[null,3,"Mon sas est équipé de manière conforme, il comprend :",false,null,false,null,false]
[null,"A","Un lavabo fonctionnel (avec eau courante et système d'évacuation)",false,"OUI",false,"NON"]
[null,"B","Du savon",false,"OUI",null,"NON",false,"PARFOIS"]
[null,"C","Du papier jetable (essuie-main)",false,"OUI",false,"NON",false,"PARFOIS"]
[null,"D","Une poubelle vidée réguliérement",false,"OUI",false,"NON",false,"PARFOIS"]
[null,"E","Un porte vêtement dans chacune des zones",false,"OUI",null,"NON",false]
[null,"F","Une tenue et des chaussures d'élevages propres, réservés à la zone d'élevage ",false,"OUI",false,"NON",null,"PARFOIS"]
[null,4,"Avant de pénétrer dans une Unité de Production, je respecte les étapes suivantes : ",false,null,false,null,false]
[null,"A","J’enlève ma tenue civile et mes chaussures en zone sale",null,"SYSTEMATIQUE",null,"JAMAIS",null,"PARFOIS"]
[null,"B","Je me lave les mains avec du savon",false,"SYSTEMATIQUE",null,"JAMAIS",false,"PARFOIS"]
[null,"C","Je mets une tenue et des bottes d'élevage en zone propre",false,"SYSTEMATIQUE",null,"JAMAIS",false,"PARFOIS"]
[null,5,"J'utilise un pédiluve avant d'entrer dans une UP",false,"NON",false,"                       PARFOIS ou SYSTEMATIQUE"]
[null,6," Je m’assure de la traçabilité sur mon exploitation en inscrivant sur la fiche élevage tous les visiteurs et intervenants extérieurs pénétrant sur le site d’exploitation ",false,"SYSTEMATIQUE",false,"JAMAIS",false,"PARFOIS"]
[null,null,null,null,{"$f":"COUNTIF(D4:D18,TRUE())","v":0},null,{"$f":"(COUNTIF(F4:F18,TRUE()))*0","v":0},null,{"$f":"(COUNTIF(H4:H18,TRUE()))*0.5","v":0}]
[]
[null,null,null,null,null,null,"TOTAL",null,{"$f":"SUM(E19:I19)","v":0}]
[null,null,null,null,null,null,null,null,{"$f":"IF(I21>12.5,\"CONFORME !\",IF(I21<9,\"NON CONFORME\", \"A AMELIORER\"))","v":"NON CONFORME"}]

{"sheet":"C- NETTOYAGE ET DESINFECTION","index":4,"n_rows":30,"n_cols":9,"rows_kept":30,"cut":false,"hidden":false,"merged":[[1,1,1,8]]}
[]
[null,"LE NETTOYAGE ET LA DESINFECTION",null,null,true]
[]
[null,1,"Après chaque départ des animaux, je respecte les étapes suivantes (si je fais réaliser les travaux de nettoyage et désinfection par un tiers, je vérifie que les étapes suivantes sont respectées) : ",false,null,true]
[null,"A","Je vide les trémies et chaînes d’alimentation, les bacs et circuit d’abreuvement",false,"SYSTEMATIQUE",false,"JAMAIS",false,"PARFOIS"]
[null,"B","Je démonte et sors du bâtiment le matériel mobile",false,"SYSTEMATIQUE",false,"JAMAIS",false,"PARFOIS"]
[null,"C","Je cure le bâtiment et évacue le fumier",false,"SYSTEMATIQUE",false,"JAMAIS",false,"PARFOIS"]
[null,"D","Je détrempe le bâtiment à l’eau claire ",false,"SYSTEMATIQUE",false,"JAMAIS",false,"PARFOIS"]
[null,"E","J’applique un détergent avec une pompe à haute pression ou un canon à mousse (si conforme à mon mode de production)",false,"SYSTEMATIQUE ou PRODUCTION BIO",null,"JAMAIS",false,"PARFOIS"]
[null,"F","Je décape et rince le bâtiment avec une pompe à moyenne pression et haut débit (du plafond vers le sol)",false,"SYSTEMATIQUE",false,"JAMAIS",false,"PARFOIS"]
[null,"G","J’insiste sur les endroits moins accessibles : caissons de ventilation, les trappes d’entrée d’air, les échangeurs de chaleurs, …",false,"SYSTEMATIQUE",false,"JAMAIS",false,"PARFOIS"]
[null,"H","Je vérifie systématiquement l’efficacité du nettoyage visuellement (méthode du mouchoir blanc) et laisse le temps nécessaire pour un séchage complet du bâtiment ",false,"SYSTEMATIQUE",false,"JAMAIS",false,"PARFOIS"]
[null,"I","Au moins une fois par an, je réalise un autocontrôle de ma procédure de désinfection par analyse (via des boites de contact, chiffonnettes, écouvillons, …)",false,"OUI",false,"NON",false]
[null,"J","Je pulvérise une solution désinfectante (dosage : entre 0,2 et 0,3 litre/m²)",false,"SYSTEMATIQUE",false,"JAMAIS",false,"PARFOIS"]
[null,"K","Je nettoie et désinfecte le matériel mobile sur une aire stabilisée ",false,"SYSTEMATIQUE",null,"JAMAIS",false,"PARFOIS"]
[null,"L","Je nettoie et désinfecte les silos d’alimentation (utilisation d’une bougie fumigène ou thermo nébulisation)",false,"SYSTEMATIQUE",false,"JAMAIS",false,"PARFOIS"]
[null,"M","Je nettoie et désinfecte le bac d’équarrissage ",false,"SYSTEMATIQUE",false,"JAMAIS",false,"PARFOIS"]
[null,"N","Je nettoie et désinfecte les circuits d’eau suivant le protocole préconisé par mon technicien et/ou mon vétérinaire ",false,"SYSTEMATIQUE",null,"JAMAIS",null,"PARFOIS"]
[null,2,"Je réalise une dératisation du bâtiment, des silos d'alimentation, du hangar de stockage, …",false,"SYSTEMATIQUE",false,"JAMAIS",false,"PARFOIS"]
[null,{"$f":"B19+1","v":3},"Je nettoie et désinfecte les abords de bâtiment et les zones de passage (à la soude caustique ou à la chaux vive)",false,"SYSTEMATIQUE",true,"JAMAIS",false,"PARFOIS"]
[null,4,"Je nettoie et désinfecte le sas sanitaire (sol, matériel, tenues et bottes d'élevage)",false,"SYSTEMATIQUE",null,"JAMAIS",false,"PARFOIS"]
[null,5,"Je nettoie et désinfecte les véhicules de l'exploitation (sur l'aire de lavage)",false,"SYSTEMATIQUE",false,"JAMAIS",false,"PARFOIS"]
[null,6,"Je connais et j’applique la durée de vide sanitaire réglementaire ",false,"SYSTEMATIQUE",null,"JAMAIS",false,"PARFOIS"]
[null,7,"Durant les opérations de nettoyage et désinfection nécessitant des produits potentiellement dangereux ou corrosif, j'utilise des protections (combinaison, bottes, lunettes, gants)",false,"SYSTEMATIQUE",false,"JAMAIS",false,"PARFOIS"]
[null,8,"Pour chacune des opérations de nettoyage et désinfection, j’utilise des produits bactéricides, fongicides et virucides et je respecte les quantités préconisées par le fournisseur ",null,"SYSTEMATIQUE",null,"JAMAIS",false,"PARFOIS"]
[null,9,"J'utilise des eaux de surface pour réaliser le nettoyage et la désinfection ",false,"JAMAIS",false,"SYSTEMATIQUE",false,"PARFOIS"]
[null,null,null,null,{"$f":"COUNTIF(D4:D26,TRUE())","v":0},null,{"$f":"(COUNTIF(F4:F26,TRUE()))*0","v":0},null,{"$f":"(COUNTIF(H4:H26,TRUE()))*0.5","v":0}]
[]
[null,null,null,null,null,null,"TOTAL",null,{"$f":"SUM(E27:I27)","v":0}]
[null,null,null,null,null,null,null,null,{"$f":"IF(I29>21.5,\"CONFORME !\",IF(I29<17.5,\"NON CONFORME\", \"A AMELIORER\"))","v":"NON CONFORME"}]

{"sheet":"D- MORTALITE","index":5,"n_rows":14,"n_cols":10,"rows_kept":14,"cut":false,"hidden":false,"merged":[[1,2,1,9]]}
[]
[null,null,"LA MORTALITE ",null,null,true]
[]
[null,null,1,"Je surveille quotidiennement mes animaux et signale à mon vétérinaire si je constate un taux de mortalité anormal",false,"SYSTEMATIQUE",false,"JAMAIS",false,"PARFOIS"]
[null,null,{"$f":"+C4+1","v":2},"Je ramasse quotidiennement les animaux morts",false,"SYSTEMATIQUE",false,"JAMAIS",false,"PARFOIS"]
[null,null,{"$f":"+C5+1","v":3},"Je transporte les animaux morts dans un sceau ou contenant hermétique afin d'éviter toute contamination",false,"SYSTEMATIQUE",false,"JAMAIS",false,"PARFOIS"]
[null,null,4,"Je tiens à jour ma fiche d'élevage en inscrivant le nombre de mort quotidiennement ",false,"SYSTEMATIQUE",false,"JAMAIS",false,"PARFOIS"]
[null,null,5,"Je stocke les animaux morts au froid négatif (maximum 3 mois)",false,"SYSTEMATIQUE",null,"JAMAIS",false,"PARFOIS"]
[null,null,6,"La veille ou le jour de passage du camion d'équarrissage, je transfère les cadavres vers le bac d'équarrissage fermé",false,"SYSTEMATIQUE",null,"JAMAIS",false,"PARFOIS"]
[null,null,7,"Je sais accéder aux bons d'équarrissage consultable sur internet ",false,"SYSTEMATIQUE",false,"JAMAIS",false,"PARFOIS"]
[null,null,null,null,null,{"$f":"COUNTIF(E4:E10,TRUE())","v":0},null,{"$f":"(COUNTIF(G4:G10,TRUE()))*0","v":0},null,{"$f":"(COUNTIF(I4:I10,TRUE()))*0.5","v":0}]
[]
[null,null,null,null,null,null,null,"TOTAL",null,{"$f":"SUM(F11:J11)","v":0}]
[null,null,null,null,null,null,null,null,null,{"$f":"IF(J13>6.5,\"CONFORME !\",IF(J13<4,\"NON CONFORME\", \"A AMELIORER\"))","v":"NON CONFORME"}]

{"sheet":"E- PARCOURS","index":6,"n_rows":16,"n_cols":9,"rows_kept":16,"cut":false,"hidden":false,"merged":[[1,1,1,8]]}
[]
[null,"LE PARCOURS ",null,null,true]
[]
[null,1,"Mes parcours sont délimités par une clôture empêchant toute introduction de prédateurs extérieurs",false,"OUI ou ELEVAGE LIBERTE",false,"NON",false]
[null,{"$f":"+B4+1","v":2},"J’entretiens régulièrement mon parcours (fauchage, autre)",false,"OUI",false,"NON",false]
[null,{"$f":"+B5+1","v":3},"Il m'arrive de stocker du matériel sur mon parcours ",false,"JAMAIS",false,"SOUVENT",false,"PARFOIS"]
[null,4,"Les points d’eau et d’alimentation sont à l’intérieur du bâtiment (ou mes trémies sont couvertes et il n'y a pas de d'aliments au sol, hors période de risque élevé)",false,"OUI",false,"NON",false]
[null,5,"Il y a plusieurs espèces sur mon parcours ",false,"OUI",null,"NON"]
[null,6,"Il y a des zones d'eau stagnantes sur mon parcours ",false,"AUCUNE",null,"BEAUCOUP",false,"QUELQUES UNES"]
[null,7,"Lorsque je ne peux pas accéder au parcours en passant par le sas, je prends la précaution d’utiliser des chaussures spécifiques, dédiés uniquement au parcours ",false,"SYSTEMATIQUE ou PASSAGE PAR LE SAS ",null,"JAMAIS",false,"PARFOIS"]
[null,8,"Après le départ des animaux, je désinfecte les parcours avec de la chaux vive ou de la soude caustique, en sortie du bâtiment ",false,"ENTRE CHAQUE BANDE",null,"JAMAIS",false,"PARFOIS"]
[null,9,"Je respecte un vide sanitaire de 42 jours minimum sur mes parcours (ou de 56 jours en production biologique)",false,"SYSTEMATIQUE",false,"JAMAIS",false,"PARFOIS"]
[null,null,null,false,{"$f":"COUNTIF(D4:D12,TRUE())","v":0},false,{"$f":"(COUNTIF(F4:F12,TRUE()))*0","v":0},false,{"$f":"(COUNTIF(H4:H12,TRUE()))*0.5","v":0}]
[]
[null,null,null,null,null,null,"TOTAL",null,{"$f":"SUM(E13:I13)","v":0}]
[null,null,null,null,null,null,null,null,{"$f":"IF(I15>8.5,\"CONFORME !\",IF(I15<5,\"NON CONFORME\", \"A AMELIORER\"))","v":"NON CONFORME"}]

{"sheet":"F- INTRANTS","index":7,"n_rows":12,"n_cols":9,"rows_kept":12,"cut":false,"hidden":false,"merged":[[1,1,1,8]]}
[]
[null,"LES INTRANTS",null,null,true]
[]
[null,1,"J’enregistre les données de livraison d’aliment et j’assure la traçabilité de mes stocks ",false,"SYSTEMATIQUE",false,"JAMAIS",false,"PARFOIS"]
[null,{"$f":"+B4+1","v":2},"Je protège mon stock d’aliment de l’humidité et de la faune sauvage (oiseaux, rongeurs)",false,"OUI",false,"NON",false]
[null,{"$f":"+B5+1","v":3},"Je stocke ma litière à l’abri de l’humidité et la protège de la faune sauvage en utilisant des filets",false,"OUI",false,"NON",false]
[null,4,"Je m’assure quotidiennement de la qualité de l'eau distribuée à mes animaux",false,"SYSTEMATIQUE",false,"JAMAIS",false,"PARFOIS"]
[null,5,"Je traite mon eau si elle n’est pas conforme aux recommandations de mon technicien et/ou vétérinaire ",false,"OUI/MON EAU EST DÉJÀ CONFORME",null,"NON"]
[null,null,"Durant les opérations de nettoyage et désinfection nécessitant des produits potentiellement dangereux ou corrosif, j'utilise des protections (combinaison, bottes, lunettes, gants)",null,{"$f":"COUNTIF(D4:D8,TRUE())","v":0},null,{"$f":"(COUNTIF(F4:F8,TRUE()))*0","v":0},null,{"$f":"(COUNTIF(H4:H8,TRUE()))*0.5","v":0}]
[]
[null,null,null,null,null,null,"TOTAL",null,{"$f":"SUM(E9:I9)","v":0}]
[null,null,null,null,null,null,null,null,{"$f":"IF(I11>4.5,\"CONFORME !\",IF(I11<3,\"NON CONFORME\", \"A AMELIORER\"))","v":"NON CONFORME"}]

{"sheet":"G- FUMIER ","index":8,"n_rows":21,"n_cols":9,"rows_kept":21,"cut":false,"hidden":false,"merged":[[1,1,1,8]]}
[]
[null,"GESTION DU FUMIER",null,null,true]
[]
[null,1,"Je respecte la réglementation vis-à-vis des distances de stockage minimales du fumier (en rapport aux zones conchylicoles, lieux de baignades, habitations, berges, cours d’eau, puits, forages, …)",false,"OUI ou FUMIER ENVOYE A L'EXTERIEUR",false,"NON ou JE NE SAIS PAS",false]
[null,{"$f":"+B4+1","v":2},"Je ne stocke pas et n'épands pas de fumier sur mes parcours",false,"OUI",false,"NON",false]
[null,{"$f":"+B5+1","v":3},"Je stocke le fumier au champ pour une période maximale de 9 mois si celui-ci n’est pas trop humide ",false,"OUI",false,"NON",false]
[null,4,"Je ne stocke pas de fumier au même endroit avant 3 ans",false,"OUI ",false,"NON",false]
[null,5,"Pour assainir le fumier, je réalise (une seule réponse possible) : ",null,null,false,null,false]
[null,"A","Un assainissement naturel par un stockage minimum de 42 jours avant épandage",false,null,true]
[null,"B","Un chaulage",false]
[null,"C","Un compostage ",false]
[null,"D","Un envoi extérieur dans une usine de compostage agrée ",false]
[null,"E","Un épandage avec enfouissement immédiat",false]
[null,"F","Un envoi chez un prêteur de terre qui épand et enfouit directement le fumier",false]
[null,"G","Un épandage immédiat sans enfouissement",false]
[null,6,"Je valide que le nettoyage et la désinfection du matériel utilisé pour le stockage, le transport, l’épandage et l’enfouissement du fumier soit bien réalisé avant et après chaque chantier ",false,"SYSTEMATIQUE",false,"JAMAIS",false,"PARFOIS"]
[null,7,"J’assure la traçabilité de mes épandages ",false,"SYSTEMATIQUE",null,"NON",false,"JE PEUX M'AMELIORER"]
[null,null,null,null,{"$f":"COUNTIF(D4:D17,TRUE())","v":0},null,{"$f":"(COUNTIF(F4:F17,TRUE()))*0","v":0},null,{"$f":"(COUNTIF(H4:H17,TRUE()))*0.5","v":0}]
[]
[null,null,null,null,null,null,"TOTAL",null,{"$f":"SUM(E18:I18)","v":0}]
[null,null,null,null,null,null,null,null,{"$f":"IF(I20>6.5,\"CONFORME !\",IF(I20<4,\"NON CONFORME\", \"A AMELIORER\"))","v":"NON CONFORME"}]

{"sheet":"BILAN - PISTES DE PROGRES","index":9,"n_rows":15,"n_cols":9,"rows_kept":15,"cut":false,"hidden":false,"merged":[[16,1,24,6],[6,6,6,8],[1,1,1,8]]}
[]
[null,"AUTO-EVALUATION DE LA MISE EN PLACE DES MESURES DE BIOSECURITE"]
[]
[null,"IDENTIFIANT ELEVAGE "]
[null,"DATE "]
[null,"NOM TECHNICIEN/VETERINAIRE"]
[null,null,null,null,null,null,"PLAN D'ACTION"]
[null,"CRITERES","EVALUATION ","NOTE","TOTAL","COMMENTAIRES","PRIORITAIRE","COURT TERME","MOYEN/LONG TERMES"]
[null,"LE PLAN DE BIOSECURITE",{"$f":"'A- PLAN DE BIOSECURITE'!J18","v":"NON CONFORME "},{"$f":"'A- PLAN DE BIOSECURITE'!J17","v":0},11]
[null,"LE SAS SANITAIRE",{"$f":"'B- SAS SANITAIRE'!I22","v":"NON CONFORME"},{"$f":"'B- SAS SANITAIRE'!I21","v":0},13]
[null,"LE NETTOYAGE ET LA DESINFECTION",{"$f":"'C- NETTOYAGE ET DESINFECTION'!$I$30","v":"NON CONFORME"},{"$f":"'C- NETTOYAGE ET DESINFECTION'!I29","v":0},22]
[null,"LA MORTALITE ",{"$f":"'D- MORTALITE'!J14","v":"NON CONFORME"},{"$f":"'D- MORTALITE'!J13","v":0},7]
[null,"LE PARCOURS ",{"$f":"'E- PARCOURS'!$I$16","v":"NON CONFORME"},{"$f":"'E- PARCOURS'!I15","v":0},9]
[null,"LES INTRANTS ",{"$f":"'F- INTRANTS'!I12","v":"NON CONFORME"},{"$f":"'F- INTRANTS'!I11","v":0},5]
[null,"LE FUMIER ",{"$f":"'G- FUMIER '!I21","v":"NON CONFORME"},{"$f":"'G- FUMIER '!I20","v":0},7]